bitfinex-derivatives/quotes_BTCF0:USTF0_20250930
["timestamp","ask_amount","ask_price","bid_price","bid_amount"]
[1759244181268,0.90019237,113650.0,113640.0,0.58147407]
[1759244182059,0.90019237,113650.0,113640.0,0.07820272]
[1759244182259,1.71550022,113650.0,113640.0,0.03128109]
[1759244183468,0.0879635,113640.0,113630.0,0.03128109]
[1759244183668,1.2793792,113640.0,113630.0,0.03128109]
[1759244184270,0.96801473,113640.0,113630.0,0.03128109]
[1759244184666,0.4487635,113640.0,113630.0,0.03128109]
[1759244184971,0.97901473,113640.0,113630.0,0.03128109]
[1759244185476,0.97401473,113640.0,113630.0,0.03128109]
[1759244185772,1.04417324,113640.0,113630.0,0.03128109]
[1759244186174,1.04117324,113640.0,113630.0,0.03128109]
[1759244186772,1.03817324,113640.0,113630.0,0.03128109]
[1759244186964,1.04417324,113640.0,113630.0,0.03128109]
[1759244188072,1.86825324,113640.0,113630.0,0.03128109]
[1759244188275,1.04417324,113640.0,113630.0,0.03128109]
[1759244188571,1.86825324,113640.0,113630.0,0.03128109]
[1759244190169,0.52492201,113640.0,113630.0,0.11925239]
[1759244190373,1.86821324,113640.0,113630.0,0.11925239]
[1759244190568,1.86821324,113640.0,113630.0,0.03128109]
[1759244192072,1.04417324,113640.0,113630.0,0.11925239]
[1759244192375,1.04117324,113640.0,113630.0,0.11925239]
[1759244192574,1.86517324,113640.0,113630.0,0.11925239]
[1759244192770,1.04117324,113640.0,113630.0,0.11925239]
[1759244192970,1.86517324,113640.0,113630.0,0.03128109]
[1759244193376,1.86217324,113640.0,113630.0,0.03128109]
[1759244193573,1.86217324,113640.0,113630.0,0.03428109]
[1759244194073,2.26217324,113640.0,113630.0,0.03428109]
[1759244194272,2.78142447,113640.0,113630.0,0.03428109]
[1759244194981,1.95742447,113640.0,113630.0,0.003]
[1759244195171,0.0879713,113630.0,113620.0,0.03128109]
[1759244195369,0.96802253,113630.0,113620.0,0.03128109]
[1759244195573,1.79202253,113630.0,113620.0,0.03128109]
[1759244196384,1.72415942,113630.0,113620.0,0.03128109]
[1759244196583,1.33755942,113630.0,113620.0,0.03128109]
[1759244196785,0.8881713,113630.0,113620.0,0.03128109]
[1759244197076,2.16351942,113630.0,113620.0,0.11926009]
[1759244197683,1.33955942,113630.0,113620.0,0.03128109]
[1759244197877,0.8861713,113630.0,113620.0,0.11926009]
[1759244198083,0.8861713,113630.0,113620.0,0.13690063]
[1759244198377,0.5253713,113630.0,113620.0,0.98828875]
[1759244198587,0.4374,113630.0,113620.0,0.98828875]
[1759244198984,0.4374,113630.0,113620.0,1.81224875]
[1759244199685,0.4374,113630.0,113620.0,0.913939]
[1759244199985,0.4374,113630.0,113620.0,1.36532712]
[1759244200289,0.4414,113630.0,113620.0,1.42675776]
[1759244200580,0.4414,113630.0,113620.0,1.42671776]
[1759244200783,0.4374,113630.0,113620.0,1.42571776]
[1759244200983,0.4374,113630.0,113620.0,1.83571776]
[1759244201982,0.4374,113630.0,113620.0,1.73408712]
[1759244202384,0.4374,113630.0,113620.0,2.13408712]
[1759244202585,0.4487639,113640.0,113630.0,0.0879713]
[1759244202786,0.52077978,113640.0,113630.0,0.9118513]
[1759244203087,0.52077978,113640.0,113630.0,0.4879713]
[1759244203287,0.15997978,113640.0,113630.0,1.35884207]
[1759244203481,0.15997938,113640.0,113630.0,1.35884207]
[1759244204083,0.15997938,113640.0,113630.0,1.35984207]
[1759244204283,0.15997938,113640.0,113630.0,1.77510671]
[1759244204784,0.15997938,113640.0,113630.0,0.95126671]
[1759244205484,0.15997938,113640.0,113630.0,1.72803594]
[1759244205778,0.15997938,113640.0,113630.0,1.3127713]
[1759244205985,0.15997938,113640.0,113630.0,1.72803594]
[1759244206188,0.15997938,113640.0,113630.0,0.96694333]
[1759244206489,0.15997938,113640.0,113630.0,1.37543869]
[1759244206690,0.57524402,113640.0,113630.0,0.55167869]
[1759244206989,0.52077938,113640.0,113630.0,1.72799594]
[1759244207193,0.52077938,113640.0,113630.0,0.90423594]
[1759244207585,0.52077938,113640.0,113630.0,1.72799594]
[1759244207786,0.52077938,113640.0,113630.0,0.90423594]
[1759244207991,0.52077938,113640.0,113630.0,1.3127313]
[1759244208189,0.15997938,113640.0,113630.0,1.72799594]
[1759244208385,0.07201588,113640.0,113630.0,1.72799594]
[1759244208688,0.89414846,113650.0,113640.0,0.0879635]
[1759244208894,0.89414846,113650.0,113640.0,0.13499394]
[1759244209093,0.89414846,113650.0,113640.0,0.16634766]
[1759244209486,0.89414846,113650.0,113640.0,0.13499394]
[1759244210487,0.89414846,113650.0,113640.0,0.04703044]
[1759244210687,0.89914846,113650.0,113640.0,0.04703044]
[1759244211092,0.89414846,113650.0,113640.0,0.04703044]
[1759244211295,0.89614846,113650.0,113640.0,0.04703044]
[1759244211995,0.89614846,113650.0,113640.0,0.13499394]
[1759244212387,0.48088382,113650.0,113640.0,0.13499394]
[1759244212588,0.89614846,113650.0,113640.0,0.13499394]
[1759244212988,0.89614846,113650.0,113640.0,0.04703044]
[1759244213190,0.89614846,113650.0,113630.0,0.9116073]
[1759244213191,0.0879635,113640.0,113630.0,0.9115654]
[1759244213390,0.50322814,113640.0,113630.0,0.95858961]
[1759244213689,0.41526464,113640.0,113630.0,1.37385425]
[1759244213892,0.48088382,113650.0,113630.0,1.37385425]
[1759244213893,0.89614846,113650.0,113640.0,0.0879635]
[1759244214196,0.89414846,113650.0,113640.0,0.13498159]
[1759244214993,0.89614846,113650.0,113640.0,0.13498159]
[1759244215193,0.90114846,113650.0,113640.0,0.13498159]
[1759244216899,0.90114846,113650.0,113640.0,0.04701809]
[1759244217596,0.90114846,113650.0,113640.0,0.13498159]
[1759244218802,0.90114846,113650.0,113640.0,0.04701809]
[1759244219300,1.30114846,113650.0,113640.0,0.04701809]
[1759244219503,2.12458846,113650.0,113640.0,0.04701809]
[1759244219996,1.30114846,113650.0,113640.0,0.04701809]
[1759244220202,2.12454846,113650.0,113640.0,0.04701809]
[1759244220702,2.12454846,113650.0,113640.0,0.13498159]
[1759244221002,2.12454846,113650.0,113640.0,0.04701809]
[1759244221298,2.12454846,113650.0,113640.0,0.13498159]
[1759244221494,2.12450846,113650.0,113640.0,0.13498159]
[1759244222099,1.30114846,113650.0,113640.0,0.13498159]
[1759244222398,2.12450846,113650.0,113640.0,0.13498159]
[1759244223509,2.12450846,113650.0,113640.0,0.04701809]
[1759244223704,2.12446846,113650.0,113640.0,0.13498159]
[1759244224506,1.30114846,113650.0,113640.0,0.13498159]
[1759244224901,1.72442846,113650.0,113640.0,0.13498159]
[1759244225799,1.30916382,113650.0,113640.0,0.13498159]
[1759244226003,1.72438846,113650.0,113640.0,0.13498159]
[1759244228308,1.72438846,113650.0,113640.0,0.0879635]
[1759244229408,1.30912382,113650.0,113640.0,0.0879635]
[1759244229608,1.72438846,113650.0,113640.0,0.0879635]
[1759244230606,0.3890504,113650.0,113640.0,0.50322814]
[1759244230805,0.0282504,113650.0,113640.0,0.96593553]
[1759244231007,0.0078,113650.0,113640.0,1.78905553]
[1759244231207,0.0082,113650.0,113640.0,2.20432017]
[1759244231510,0.0082,113650.0,113640.0,2.50241278]
[1759244231705,0.0078,113650.0,113640.0,2.50241278]
[1759244232005,0.0082,113650.0,113640.0,2.08714814]
[1759244233412,0.0082,113650.0,113640.0,1.26402814]
[1759244233604,0.0082,113650.0,113640.0,2.50237278]
[1759244233999,0.0082,113650.0,113640.0,2.51105566]
[1759244234206,0.0082,113650.0,113640.0,2.59048301]
[1759244234708,0.0078,113650.0,113640.0,2.59048301]
[1759244235005,0.0008,113660.0,113650.0,0.0879558]
[1759244235207,0.002,113670.0,113660.0,0.0879481]
[1759244235406,0.0028,113670.0,113660.0,0.92673888]
[1759244235607,0.002,113670.0,113660.0,0.92673888]
[1759244235810,0.0024,113670.0,113660.0,0.92673888]
[1759244236310,0.0024,113670.0,113660.0,1.26401274]
[1759244236506,0.0074,113670.0,113660.0,2.08701274]
[1759244236708,0.007,113670.0,113660.0,2.08701274]
[1759244236909,0.0074,113670.0,113660.0,2.08701274]
[1759244237413,0.0024,113670.0,113660.0,2.08701274]
[1759244238112,0.0044,113670.0,113660.0,2.08701274]
[1759244239614,0.004,113670.0,113660.0,1.26401274]
[1759244239812,0.0044,113670.0,113660.0,2.08689274]
[1759244240012,0.0044,113670.0,113660.0,2.14961888]
[1759244240312,0.0044,113670.0,113660.0,2.56488352]
[1759244240607,0.0008,113680.0,113670.0,0.0879403]
[1759244240803,0.0008,113680.0,113670.0,1.34190924]
[1759244241214,0.0008,113680.0,113670.0,1.27926958]
[1759244241512,0.0008,113680.0,113670.0,0.4487403]
[1759244241713,0.0008,113680.0,113670.0,1.34190924]
[1759244242009,0.0008,113680.0,113670.0,1.74906118]
[1759244242406,0.0028,113680.0,113670.0,2.14906118]
[1759244242610,0.0008,113680.0,113670.0,1.7411424]
[1759244242810,0.0012,113680.0,113670.0,2.5639024]
[1759244243518,0.0012,113680.0,113670.0,1.7411424]
[1759244243519,0.0042,113680.0,113670.0,1.7411424]
[1759244243814,0.0042,113680.0,113670.0,2.5639024]
[1759244244008,0.0042,113680.0,113670.0,2.5638624]
[1759244244319,0.0042,113680.0,113670.0,2.50122274]
[1759244244817,0.0042,113680.0,113670.0,1.6714603]
[1759244245015,0.0042,113680.0,113670.0,2.50122274]
[1759244245310,0.0042,113680.0,113670.0,1.67850274]
[1759244245517,0.0042,113680.0,113670.0,2.50122274]
[1759244246026,0.86781382,113680.0,113670.0,0.13484158]
[1759244246317,0.86781382,113680.0,113670.0,0.95748158]
[1759244246519,0.4529326,113680.0,113670.0,0.95748158]
[1759244246817,0.86781382,113680.0,113670.0,0.95748158]
[1759244247115,0.365,113680.0,113670.0,1.3723628]
[1759244247712,0.3646,113680.0,113670.0,1.3723628]
[1759244247917,0.365,113680.0,113670.0,1.3723628]
[1759244248116,0.4529326,113680.0,113670.0,1.3723628]
[1759244248316,0.4529326,113680.0,113670.0,1.3723228]
[1759244248916,0.365,113680.0,113670.0,1.3723228]
[1759244249117,0.4529326,113680.0,113670.0,1.3723228]
[1759244249514,0.4529326,113680.0,113670.0,0.5497228]
[1759244249718,0.4529326,113680.0,113670.0,1.3722828]
[1759244250110,0.365,113680.0,113670.0,1.3722828]
[1759244250306,0.0042,113680.0,113670.0,2.14796402]
[1759244250514,0.0038,113680.0,113670.0,2.14796402]
[1759244250710,0.0038,113680.0,113670.0,2.54796402]
[1759244250912,0.0042,113680.0,113670.0,2.54796402]
[1759244251115,0.0038,113680.0,113670.0,2.54796402]
[1759244251316,0.0042,113680.0,113670.0,2.54796402]
[1759244252721,0.0038,113680.0,113670.0,2.54796402]
[1759244252915,0.0042,113680.0,113670.0,1.3105228]
[1759244253120,0.0042,113680.0,113670.0,2.1330028]
[1759244254220,0.0042,113680.0,113670.0,2.54788402]
[1759244255018,0.4529326,113680.0,113670.0,0.04690128]
[1759244255214,0.4529326,113680.0,113670.0,1.3721628]
[1759244255616,0.4529326,113680.0,113670.0,2.17912965]
[1759244255617,0.0038,113680.0,113670.0,2.17912965]
[1759244255916,0.0042,113680.0,113670.0,2.50094274]
[1759244256121,0.0042,113680.0,113670.0,2.5635824]
[1759244256519,0.0038,113680.0,113670.0,2.5635824]
[1759244256722,0.0042,113680.0,113670.0,2.5635824]
[1759244256924,0.0042,113680.0,113670.0,1.7411424]
[1759244257119,0.0042,113680.0,113670.0,2.5635424]
[1759244257521,0.0038,113680.0,113670.0,2.5635424]
[1759244257824,0.0007695,113680.0,113670.0,2.5635424]
[1759244258021,0.0007695,113680.0,113670.0,2.63246556]
[1759244258323,0.0007695,113680.0,113670.0,2.63234866]
[1759244259425,0.0007695,113680.0,113670.0,2.23234866]
[1759244259622,0.0007695,113680.0,113670.0,3.04717143]
[1759244259825,0.0007695,113680.0,113670.0,2.63234866]
[1759244260126,0.0003695,113680.0,113670.0,1.80994866]
[1759244260326,0.0007695,113680.0,113670.0,1.93994866]
[1759244260626,0.0007695,113680.0,113670.0,2.36222866]
[1759244260927,0.0004,113680.0,113670.0,2.36622866]
[1759244261225,0.0004,113680.0,113670.0,2.36822866]
[1759244262828,0.0004,113680.0,113670.0,3.18305143]
[1759244263023,0.0032,113690.0,113670.0,3.18305143]
[1759244263231,0.0032,113690.0,113680.0,1.69320091]
[1759244263429,0.0032,113690.0,113680.0,1.27837814]
[1759244264024,0.0032,113690.0,113680.0,1.28725983]
[1759244265122,0.0032,113690.0,113680.0,0.45761429]
[1759244265330,0.0032,113690.0,113680.0,2.11037983]
[1759244265626,0.0032,113690.0,113680.0,1.35089949]
[1759244265833,0.0032,113690.0,113680.0,2.17201949]
[1759244266231,0.0032,113690.0,113680.0,1.34989949]
[1759244266440,0.0032,113690.0,113680.0,2.17197949]
[1759244267327,0.0032,113690.0,113680.0,2.1630978]
[1759244267532,0.0032,113690.0,113680.0,2.10045814]
[1759244268138,0.0032,113690.0,113680.0,2.10041814]
[1759244268527,0.41802277,113690.0,113680.0,0.4487326]
[1759244268731,1.26674757,113690.0,113680.0,0.15063286]
[1759244268927,1.26674757,113690.0,113680.0,0.97263286]
[1759244269138,0.90594757,113690.0,113680.0,1.38745563]
[1759244269641,0.81802277,113690.0,113680.0,1.38745563]
[1759244269845,0.90594757,113690.0,113680.0,1.38745563]
[1759244270039,1.26674757,113690.0,113680.0,1.38745563]
[1759244270234,1.26674757,113690.0,113680.0,0.06270026]
[1759244270741,0.0879326,113680.0,113670.0,0.15063746]
[1759244270940,1.27837814,113680.0,113670.0,0.97259746]
[1759244271143,1.67837814,113680.0,113670.0,0.06270026]
[1759244271641,1.67837814,113680.0,113670.0,0.15064056]
[1759244272037,0.8487326,113680.0,113670.0,0.15064056]
[1759244272238,1.67837814,113680.0,113670.0,0.06770026]
[1759244273846,1.67837814,113680.0,113670.0,0.06270026]
[1759244274150,1.67837814,113680.0,113670.0,0.15564056]
[1759244274750,1.67837814,113680.0,113670.0,0.06770026]
[1759244275340,1.67837814,113680.0,113670.0,0.07070026]
[1759244275539,1.67837814,113680.0,113670.0,0.06570026]
[1759244275842,1.67837814,113680.0,113670.0,0.07070026]
[1759244276541,1.67837814,113680.0,113670.0,0.08648687]
[1759244276741,1.67837814,113680.0,113670.0,0.05509212]
[1759244276952,1.67837814,113680.0,113670.0,0.08648607]
[1759244277444,1.67837814,113680.0,113670.0,0.05509212]
[1759244278140,1.67837814,113680.0,113670.0,0.14303242]
[1759244278343,1.67837814,113680.0,113670.0,0.05509212]
[1759244278745,1.67837814,113680.0,113670.0,0.08647123]
[1759244279446,2.50021814,113680.0,113670.0,0.08647123]
[1759244279747,1.67837814,113680.0,113670.0,0.17441153]
[1759244279944,2.50025814,113680.0,113670.0,0.08647123]
[1759244280450,1.67837814,113680.0,113670.0,0.17441153]
[1759244280642,2.50021814,113680.0,113670.0,0.5892343]
[1759244281548,1.67837814,113680.0,113670.0,0.5892343]
[1759244281750,2.50021814,113680.0,113670.0,0.5892343]
[1759244281938,1.67837814,113680.0,113670.0,0.5892343]
[1759244282142,1.2705726,113680.0,113670.0,0.54985519]
[1759244282350,0.86355537,113680.0,113670.0,0.54985519]
[1759244283252,0.86355537,113680.0,113670.0,0.55285519]
[1759244283550,0.86355537,113680.0,113670.0,0.55785519]
[1759244284141,0.50275537,113680.0,113670.0,0.55785519]
[1759244284346,0.77882277,113690.0,113680.0,0.0879326]
[1759244284644,0.86675507,113690.0,113680.0,0.94890205]
[1759244284846,0.86715507,113690.0,113680.0,0.53407928]
[1759244285551,0.86675507,113690.0,113680.0,0.53407928]
[1759244285845,0.41842277,113690.0,113680.0,0.53407928]
[1759244286051,0.50634757,113690.0,113680.0,0.53407928]
[1759244286448,0.50634757,113690.0,113680.0,0.5811714]
[1759244286651,0.50634757,113690.0,113680.0,0.53407928]
[1759244287252,0.41842277,113690.0,113680.0,0.99599417]
[1759244287454,0.50634757,113690.0,113680.0,0.11925651]
[1759244287650,0.50634757,113690.0,113680.0,0.03132391]
[1759244287853,0.50634757,113690.0,113680.0,0.44614668]
[1759244288047,0.86714757,113690.0,113680.0,0.03132391]
[1759244288251,0.86714757,113690.0,113680.0,0.44614668]
[1759244288448,0.86714757,113690.0,113680.0,0.03132391]
[1759244288654,1.68197034,113690.0,113680.0,0.02347712]
[1759244290062,0.0879326,113680.0,113670.0,0.0535441]
[1759244290354,2.53517419,113680.0,113670.0,0.0535441]
[1759244290556,2.93517419,113680.0,113670.0,0.02347924]
[1759244291252,0.0879481,113660.0,113650.0,0.04709212]
[1759244291447,1.27839364,113660.0,113650.0,0.04709212]
[1759244292048,2.10862783,113660.0,113650.0,0.04709212]
[1759244292857,2.10862783,113660.0,113650.0,0.05009212]
[1759244293057,1.28698783,113660.0,113650.0,0.05509212]
[1759244293252,1.28698783,113660.0,113650.0,0.14304792]
[1759244293453,2.10862783,113660.0,113650.0,0.05509212]
[1759244294551,3.2842506,113660.0,113650.0,0.05509212]
[1759244294859,3.2842506,113660.0,113650.0,0.008]
[1759244295055,2.04778783,113660.0,113650.0,0.008]
[1759244295254,2.86942783,113660.0,113650.0,0.008]
[1759244295657,0.0879558,113650.0,113640.0,0.04709212]
[1759244295853,1.32441857,113650.0,113640.0,0.04709212]
[1759244296051,1.68521857,113650.0,113640.0,0.04709212]
[1759244296358,1.68517857,113650.0,113640.0,0.13505562]
[1759244297263,1.68517857,113650.0,113640.0,0.04709212]
[1759244297459,2.50000134,113650.0,113640.0,0.04709212]
[1759244297958,2.50000134,113650.0,113640.0,0.05209212]
[1759244298261,2.08517857,113650.0,113640.0,0.14505562]
[1759244298457,1.26357857,113650.0,113640.0,0.14505562]
[1759244298659,2.08517857,113650.0,113640.0,0.13805562]
[1759244299061,1.26357857,113650.0,113640.0,0.05009212]
[1759244299259,0.86357857,113650.0,113640.0,0.05009212]
[1759244299562,1.68517857,113650.0,113640.0,0.13805562]
[1759244300464,1.68517857,113650.0,113640.0,0.05009212]
[1759244301260,0.86357857,113650.0,113640.0,0.05009212]
[1759244301564,1.68517857,113650.0,113640.0,0.13805562]
[1759244301753,0.86357857,113650.0,113640.0,0.13805562]
[1759244301960,1.68517857,113650.0,113640.0,0.13805562]
[1759244302158,1.68513857,113650.0,113640.0,0.05009212]
[1759244302758,1.68513857,113650.0,113640.0,0.13805562]
[1759244303364,0.86357857,113650.0,113640.0,0.13805562]
[1759244303564,1.68513857,113650.0,113640.0,0.13805562]
[1759244304663,0.86357857,113650.0,113640.0,0.13805562]
[1759244304867,1.68509857,113650.0,113640.0,0.55287839]
[1759244305169,1.68549857,113650.0,113640.0,0.13805562]
[1759244305366,1.68549857,113650.0,113640.0,0.55287839]
[1759244306071,1.59754277,113650.0,113640.0,0.55287839]
[1759244306263,1.68549857,113650.0,113640.0,0.55287839]
[1759244306471,0.86397857,113650.0,113640.0,0.13805562]
[1759244306666,0.86357857,113650.0,113640.0,0.13805562]
[1759244306871,0.86397857,113650.0,113640.0,0.13805562]
[1759244307564,0.86397857,113650.0,113640.0,0.55287839]
[1759244307768,0.86397857,113650.0,113640.0,0.13805562]
[1759244307968,0.86397857,113650.0,113640.0,0.55287839]
[1759244309672,0.86397857,113650.0,113640.0,0.13805562]
[1759244309872,0.86397857,113650.0,113640.0,0.55287839]
[1759244311872,0.86397857,113650.0,113640.0,0.13805562]
[1759244312371,0.3612,113650.0,113640.0,0.55287839]
[1759244312673,1.68537857,113650.0,113640.0,0.55287839]
[1759244313467,1.68537857,113650.0,113640.0,0.13805562]
[1759244314275,1.68537857,113650.0,113640.0,0.0909635]
[1759244314969,1.68533857,113650.0,113640.0,0.50578627]
[1759244315277,1.68529857,113650.0,113640.0,0.50578627]
[1759244315679,1.68529857,113650.0,113640.0,0.0909635]
[1759244315878,1.68529857,113650.0,113640.0,0.50578627]
[1759244316378,1.68529857,113650.0,113640.0,0.56848653]
[1759244316884,1.68529857,113650.0,113640.0,0.0909635]
[1759244317179,0.86397857,113650.0,113640.0,0.15366376]
[1759244317380,1.68529857,113650.0,113640.0,0.56848653]
[1759244318375,0.86441059,113650.0,113640.0,0.15366376]
[1759244318576,1.68565059,113650.0,113640.0,0.15366376]
[1759244318778,1.68565059,113650.0,113640.0,0.0909635]
[1759244319174,1.68565059,113650.0,113640.0,0.15366376]
[1759244321375,1.68561059,113650.0,113640.0,0.15366376]
[1759244321681,1.68557059,113650.0,113640.0,0.15366376]
[1759244322283,0.86441059,113650.0,113640.0,0.15366376]
[1759244322476,1.68557059,113650.0,113640.0,0.15366376]
[1759244323074,1.68553059,113650.0,113640.0,0.15366376]
[1759244323481,0.86441059,113650.0,113640.0,0.15366376]
[1759244323886,0.0004,113650.0,113640.0,0.50621829]
[1759244324182,1.34777717,113660.0,113650.0,0.0879558]
[1759244324482,1.76383196,113660.0,113650.0,0.15081123]
[1759244326576,0.43015128,113660.0,113650.0,0.56606602]
[1759244326780,0.06975128,113660.0,113650.0,0.96606602]
[1759244326977,0.06975128,113660.0,113650.0,0.97706602]
[1759244327177,0.15729938,113660.0,113650.0,0.97706602]
[1759244327384,0.57795417,113660.0,113650.0,0.15081123]
[1759244327887,0.58657528,113660.0,113650.0,0.16181123]
[1759244328086,0.58157528,113660.0,113650.0,0.15081123]
[1759244328281,0.58157528,113660.0,113650.0,0.15481123]
[1759244328686,0.58157528,113660.0,113650.0,0.15081123]
[1759244328987,0.58157528,113660.0,113650.0,0.15181123]
[1759244329487,1.40249528,113660.0,113650.0,0.56706602]
[1759244329674,1.40209528,113660.0,113650.0,0.56706602]
[1759244329880,1.40249528,113660.0,113650.0,0.56806602]
[1759244330186,0.58157528,113660.0,113650.0,0.56806602]
[1759244330383,0.58157528,113660.0,113650.0,0.15281123]
[1759244330575,0.58157528,113660.0,113650.0,0.15081123]
[1759244330772,0.17332049,113660.0,113650.0,0.15081123]
[1759244330984,0.58157528,113660.0,113650.0,0.15081123]
[1759244331181,0.58157528,113660.0,113650.0,0.15181123]
[1759244333381,0.94237528,113660.0,113650.0,0.15181123]
[1759244334488,0.94237528,113660.0,113650.0,0.15081123]
[1759244334687,0.94237528,113660.0,113650.0,0.15281123]
[1759244335283,1.34237528,113660.0,113650.0,0.06485543]
[1759244335584,1.34237528,113660.0,113650.0,0.15281123]
[1759244335982,2.16305528,113660.0,113650.0,0.15281123]
[1759244336187,0.47837239,113660.0,113650.0,0.15281123]
[1759244336486,0.47837239,113660.0,113650.0,0.92886602]
[1759244336487,0.0004,113660.0,113650.0,0.92886602]
[1759244336689,1.2694217,113670.0,113660.0,0.0879481]
[1759244336886,0.0008,113670.0,113660.0,0.92685832]
[1759244337091,0.0008,113670.0,113660.0,1.32685832]
[1759244337883,0.0048,113670.0,113660.0,1.33584669]
[1759244338385,0.0028,113670.0,113660.0,1.33584669]
[1759244339187,0.002,113670.0,113660.0,1.33584669]
[1759244339382,0.0004,113670.0,113660.0,1.35341861]
[1759244339588,0.1616322,113690.0,113670.0,0.0879381]
[1759244339789,0.1624322,113690.0,113680.0,0.41525479]
[1759244339994,0.1624322,113690.0,113680.0,0.50318739]
[1759244340181,0.1616322,113690.0,113680.0,0.50318739]
[1759244340385,0.1620322,113690.0,113680.0,0.50318739]
[1759244340585,0.1620322,113690.0,113680.0,0.86398739]
[1759244340789,0.1660322,113690.0,113680.0,0.86398739]
[1759244340992,0.0781074,113690.0,113680.0,0.92667231]
[1759244341185,0.0741074,113690.0,113680.0,0.92667231]
[1759244341386,0.0086,113690.0,113680.0,0.86398739]
[1759244341585,0.0082,113690.0,113680.0,0.86398739]
[1759244341782,0.0086,113690.0,113680.0,1.68446739]
[1759244342190,0.0086,113690.0,113680.0,1.73144058]
[1759244342493,0.0136,113690.0,113680.0,1.73144058]
[1759244342695,2.09797959,113690.0,113680.0,0.03132591]
[1759244343188,0.4623248,113690.0,113680.0,0.13490579]
[1759244343395,0.0136,113690.0,113680.0,0.55016058]
[1759244343586,0.0132,113690.0,113680.0,0.55016058]
[1759244343888,0.94913482,113690.0,113680.0,0.13490579]
[1759244344095,0.51677959,113690.0,113680.0,0.13490579]
[1759244344893,0.42885479,113690.0,113680.0,0.13490579]
[1759244345098,0.0132,113690.0,113680.0,0.55016058]
[1759244345395,0.1015248,113690.0,113680.0,0.55016058]
[1759244345586,0.1011248,113690.0,113680.0,0.55016058]
[1759244345786,0.0136,113690.0,113680.0,1.37048058]
[1759244346193,0.0136,113690.0,113680.0,1.37044058]
[1759244346394,0.0136,113690.0,113680.0,0.55016058]
[1759244346695,0.1015248,113690.0,113680.0,1.37044058]
[1759244347296,0.0136,113690.0,113680.0,1.37044058]
[1759244347498,0.0136,113690.0,113680.0,1.40173793]
[1759244347800,0.0136,113690.0,113680.0,0.58145793]
[1759244348095,0.0136,113690.0,113680.0,1.40165793]
[1759244348293,0.08464883,113690.0,113680.0,1.40165793]
[1759244348996,0.08464883,113690.0,113680.0,0.58145793]
[1759244349192,0.08464883,113690.0,113680.0,1.76241793]
[1759244349496,0.08464883,113690.0,113680.0,1.73112058]
[1759244349698,0.0132,113690.0,113680.0,2.14683231]
[1759244349892,0.0136,113690.0,113680.0,2.14683231]
[1759244350093,0.0132,113690.0,113680.0,2.14683231]
[1759244350492,0.0136,113690.0,113680.0,2.14683231]
[1759244350691,0.0132,113690.0,113680.0,2.14683231]
[1759244350886,0.0136,113690.0,113680.0,2.14683231]
[1759244351289,1.30877447,113690.0,113680.0,0.04689625]
[1759244351594,1.63837959,113690.0,113680.0,0.07816787]
[1759244352194,1.63837959,113690.0,113680.0,0.03127162]
[1759244352400,1.63837959,113690.0,113680.0,0.05472789]
[1759244352800,1.63837959,113690.0,113680.0,0.03127162]
[1759244352997,1.63837959,113690.0,113680.0,0.05472586]
[1759244353395,1.63837959,113690.0,113680.0,0.03127162]
[1759244354499,1.63837959,113690.0,113680.0,0.11920422]
[1759244355288,1.63837959,113690.0,113680.0,0.16610047]
[1759244355495,1.70754379,113690.0,113680.0,0.11139897]
[1759244356099,2.52754379,113690.0,113680.0,0.11139897]
[1759244356895,2.52750379,113690.0,113680.0,0.11139897]
[1759244357702,1.70754379,113690.0,113680.0,0.11139897]
[1759244357901,2.52746379,113690.0,113680.0,0.11139897]
[1759244358298,1.70754379,113690.0,113680.0,0.11139897]
[1759244358501,1.70754379,113690.0,113680.0,0.53445901]
[1759244358502,0.0827642,113690.0,113680.0,0.53445901]
[1759244358695,0.0823642,113690.0,113680.0,0.53445901]
[1759244358998,0.0827642,113690.0,113680.0,0.53445901]
[1759244359193,0.170289,113690.0,113680.0,0.58135526]
[1759244359394,0.94674379,113690.0,113680.0,0.16610047]
[1759244359791,0.94674379,113690.0,113680.0,0.11920422]
[1759244360595,0.94674379,113690.0,113680.0,0.16610047]
[1759244360805,0.0827642,113690.0,113680.0,1.34215526]
[1759244361303,0.0827642,113690.0,113680.0,1.31088364]
[1759244363002,1.67407378,113690.0,113680.0,0.02046325]
[1759244363207,1.67407378,113690.0,113650.0,0.06268492]
[1759244363208,0.087948,113660.0,113650.0,0.06268492]
[1759244363399,0.50320279,113660.0,113650.0,0.15064072]
[1759244363703,1.2685076,113670.0,113660.0,0.087948]
[1759244363899,0.087948,113660.0,113650.0,0.56588991]
[1759244364305,0.088348,113660.0,113650.0,0.15063512]
[1759244364502,0.088348,113660.0,113650.0,0.15763512]
[1759244364703,0.088348,113660.0,113650.0,0.97735512]
[1759244365400,0.088348,113660.0,113650.0,0.97135512]
[1759244365599,0.088348,113660.0,113650.0,0.97435512]
[1759244366107,0.09711656,113660.0,113650.0,0.97035512]
[1759244366403,0.09911656,113660.0,113650.0,0.97035512]
[1759244366608,0.09911656,113660.0,113650.0,0.15063512]
[1759244366810,0.09911656,113660.0,113650.0,0.97035512]
[1759244366995,0.10111656,113660.0,113650.0,0.97035512]
[1759244367508,0.092348,113660.0,113650.0,0.15063512]
[1759244367806,0.092348,113660.0,113650.0,0.97031512]
[1759244368007,0.092348,113660.0,113650.0,0.9086302]
[1759244368008,0.088348,113660.0,113650.0,0.9086302]
[1759244368209,0.088348,113660.0,113650.0,0.9096302]
[1759244368798,0.088348,113660.0,113650.0,0.9086302]
[1759244369609,0.0972123,113660.0,113650.0,0.9086302]
[1759244370010,0.0972123,113660.0,113650.0,0.0889502]
[1759244370198,0.0972123,113660.0,113650.0,0.9085902]
[1759244371110,0.0972123,113660.0,113650.0,0.0889502]
[1759244371309,0.0972123,113660.0,113650.0,0.9085902]
[1759244372302,0.088348,113660.0,113650.0,0.9085902]
[1759244372503,0.0004,113660.0,113650.0,2.18306583]
[1759244372708,0.087944,113670.0,113660.0,0.087948]
[1759244372908,0.09661083,113670.0,113660.0,0.448748]
[1759244373716,0.09661083,113670.0,113660.0,0.97023292]
[1759244375222,0.09661083,113670.0,113660.0,1.33103292]
[1759244375515,0.087944,113670.0,113660.0,1.33103292]
[1759244375711,0.087944,113670.0,113660.0,1.33099292]
[1759244376019,0.4495378,113680.0,113670.0,0.0879403]
[1759244376221,0.4495378,113680.0,113670.0,0.11928324]
[1759244377313,0.4555378,113680.0,113670.0,0.11928324]
[1759244377917,0.46419146,113680.0,113670.0,0.03134294]
[1759244378119,0.46119146,113680.0,113670.0,0.03134294]
[1759244379220,0.91218217,113680.0,113670.0,0.03134294]
[1759244379422,0.91218217,113680.0,113670.0,0.11928324]
[1759244379809,0.91218217,113680.0,113670.0,0.93872324]
[1759244380214,0.98001756,113680.0,113670.0,0.0879403]
[1759244380522,0.0879403,113670.0,113660.0,0.15062682]
[1759244380723,0.0879403,113670.0,113660.0,0.96998682]
[1759244381821,0.6067664,113670.0,113660.0,0.96998682]